bitfinex/quotes_BTCUSD_20250421
["timestamp","ask_amount","ask_price","bid_price","bid_amount"]
[1745198210429,0.12232634,86866.0,86854.0,0.1124]
[1745198210637,0.11944791,86864.0,86855.0,0.34]
[1745198210828,0.43074085,86865.0,86854.0,0.1124]
[1745198210829,0.11944791,86860.0,86854.0,0.1124]
[1745198211035,0.0479,86858.0,86854.0,0.1124]
[1745198211237,0.12232648,86857.0,86848.0,0.34]
[1745198211638,0.12232648,86857.0,86847.0,0.1124]
[1745198212540,0.11732648,86857.0,86847.0,0.1124]
[1745198212723,0.12020516,86857.0,86847.0,0.1124]
[1745198213223,0.01454085,86852.0,86819.0,0.0130603]
[1745198213433,0.0479,86858.0,86832.0,0.1124]
[1745198213434,0.11944791,86845.0,86832.0,0.1124]
[1745198215725,0.11944791,86845.0,86821.0,0.00230312]
[1745198215726,0.11944791,86845.0,86833.0,0.3423031]
[1745198215928,0.00287875,86844.0,86833.0,0.4524]
[1745198216138,0.11944791,86843.0,86835.0,0.34]
[1745198216315,0.0028789,86842.0,86835.0,0.34]
[1745198216493,0.11944791,86841.0,86835.0,0.34]
[1745198216695,0.0028789,86840.0,86835.0,0.34]
[1745198216907,0.11944791,86839.0,86835.0,0.34]
[1745198218593,0.0479,86837.0,86834.0,0.1124]
[1745198218800,0.12232704,86836.0,86834.0,0.1124]
[1745198219005,0.11944791,86836.0,86834.0,0.1124]
[1745198222052,0.11944791,86836.0,86835.0,0.34]
[1745198222385,0.002879,86848.0,86835.0,0.34]
[1745198222386,0.00287899,86848.0,86835.0,0.34]
[1745198222584,0.11944791,86847.0,86835.0,0.34]
[1745198222784,0.4641,86862.0,86836.0,0.00230297]
[1745198222990,0.11944791,86861.0,86836.0,0.00230297]
[1745198223215,0.11944791,86861.0,86841.0,0.34]
[1745198223511,0.00013568,86863.0,86841.0,0.34]
[1745198223768,0.11944791,86862.0,86843.0,0.34]
[1745198223931,0.53564791,86861.0,86843.0,0.34]
[1745198224102,0.0479,86859.0,86845.0,0.34]
[1745198224310,0.11944791,86855.0,86845.0,0.34]
[1745198224502,0.00287879,86854.0,86845.0,0.34]
[1745198224711,0.11944791,86853.0,86845.0,0.34]
[1745198224906,0.0223267,86853.0,86845.0,0.34]
[1745198225114,0.045,86852.0,86844.0,0.11228]
[1745198225316,0.11944791,86851.0,86844.0,0.11228]
[1745198226012,0.0479,86859.0,86846.0,0.34]
[1745198226213,0.11944791,86858.0,86846.0,0.34]
[1745198227757,0.01454085,86857.0,86846.0,0.34]
[1745198227957,0.11944791,86856.0,86844.0,0.002]
[1745198228155,0.4162,86855.0,86846.0,0.34]
[1745198228365,0.11944791,86854.0,86846.0,0.34]
[1745198230047,0.4162,86855.0,86846.0,0.34]
[1745198230278,0.53564791,86855.0,86846.0,0.34]
[1745198233249,0.4162,86855.0,86847.0,0.00230274]
[1745198233605,0.00013568,86863.0,86847.0,0.00230274]
[1745198233823,0.11944791,86862.0,86844.0,0.002]
[1745198234024,0.11944791,86862.0,86846.0,0.34]
[1745198234293,0.11944791,86862.0,86848.0,0.34]
[1745198234644,0.11944791,86862.0,86849.0,0.00230265]
[1745198235060,0.0356881,86876.0,86849.0,0.00230265]
[1745198235261,0.11944791,86875.0,86849.0,0.00230265]
[1745198235486,0.11944791,86875.0,86848.0,0.34]
[1745198237795,0.11944791,86875.0,86844.0,0.002]
[1745198237997,0.01454085,86872.0,86845.0,0.11228]
[1745198238203,0.01454085,86870.0,86845.0,0.11228]
[1745198238421,0.11944791,86869.0,86845.0,0.11228]
[1745198239769,0.4162,86868.0,86845.0,0.11228]
[1745198239981,0.11944791,86867.0,86845.0,0.11228]
[1745198240393,0.11944791,86867.0,86846.0,0.34]
[1745198241258,0.11944791,86864.0,86844.0,0.002]
[1745198241473,0.01454085,86857.0,86847.0,0.11228]
[1745198241692,0.01454085,86855.0,86844.0,0.002]
[1745198241900,0.16624791,86856.0,86844.0,0.002]
[1745198241901,0.01454085,86849.0,86846.0,0.11228]
[1745198242122,0.01454085,86847.0,86846.0,0.11228]
[1745198242337,0.13398876,86847.0,86846.0,0.11228]
[1745198242545,0.55018876,86847.0,86846.0,0.11228]
[1745198242968,0.53564791,86847.0,86846.0,0.11228]
[1745198243352,0.53564791,86847.0,86846.0,0.11241568]
[1745198244326,0.53564791,86847.0,86846.0,0.00013568]
[1745198244921,0.55018876,86847.0,86846.0,0.00013568]
[1745198247068,0.55118876,86847.0,86846.0,0.00013568]
[1745198247280,0.64458876,86847.0,86846.0,0.00013568]
[1745198247485,0.24483355,86846.0,86844.0,0.002]
[1745198247693,0.18078876,86845.0,86844.0,0.002]
[1745198248656,0.18950137,86845.0,86844.0,0.002]
[1745198249045,0.01454085,86827.0,86810.0,0.0006886]
[1745198249353,0.11944791,86813.0,86810.0,0.00082443]
[1745198249759,0.01454085,86812.0,86810.0,0.00082443]
[1745198250135,0.13398876,86811.0,86810.0,0.00082443]
[1745198250685,0.18078876,86811.0,86810.0,0.00082443]
[1745198251284,0.18178876,86811.0,86810.0,0.00082443]
[1745198251485,0.19028071,86811.0,86810.0,0.00082443]
[1745198251888,0.23688071,86811.0,86810.0,0.00082443]
[1745198252122,0.24492905,86810.0,86801.0,0.004]
[1745198252319,0.01454085,86801.0,86799.0,0.0008444]
[1745198252519,0.59698876,86800.0,86799.0,0.0008444]
[1745198253089,0.62904791,86800.0,86799.0,0.0008444]
[1745198253289,0.58224791,86800.0,86799.0,0.0008444]
[1745198253493,0.59678876,86800.0,86799.0,0.0008444]
[1745198253706,0.01454085,86773.0,86747.0,0.0008446]
[1745198253942,0.13398876,86772.0,86747.0,0.02675349]
[1745198254355,0.11944791,86772.0,86749.0,0.00314777]
[1745198254578,0.11944791,86772.0,86750.0,0.00230519]
[1745198254791,0.11944791,86772.0,86752.0,0.0462446]
[1745198254997,0.11944791,86772.0,86768.0,0.34]
[1745198255199,0.11944791,86772.0,86771.0,0.0041356]
[1745198255801,0.13398876,86772.0,86771.0,0.0041356]
[1745198256159,0.36447785,86772.0,86771.0,0.0041356]
[1745198256743,0.52055614,86772.0,86771.0,0.0041356]
[1745198256952,0.24506182,86760.0,86758.0,0.0008446]
[1745198257152,0.36450973,86760.0,86759.0,0.00129755]
[1745198257356,0.13398876,86760.0,86759.0,0.00129755]
[1745198260290,0.55018876,86760.0,86759.0,0.00129755]
[1745198263628,0.55018876,86760.0,86752.0,0.0008446]
[1745198263629,0.55018876,86760.0,84571.0,0.004]
[1745198263745,0.01454085,86745.0,86736.0,0.34]
[1745198263946,0.53564791,86744.0,86736.0,0.34]
[1745198264154,0.54411395,86744.0,86736.0,0.34]
[1745198265097,0.54411395,86744.0,86734.0,0.11224]
[1745198265344,0.01454085,86739.0,86734.0,0.11224]
[1745198265556,0.01454085,86734.0,86711.0,0.98681056]
[1745198265755,0.13398876,86732.0,86720.0,0.11224]
[1745198266119,0.11944791,86728.0,86720.0,0.11224]
[1745198266320,0.01454085,86724.0,86720.0,0.11224]
[1745198266521,0.01454085,86722.0,86720.0,0.11224]
[1745198266717,0.11944791,86721.0,86720.0,0.11224]
[1745198268088,0.01454085,86720.0,86711.0,0.00013056]
[1745198268223,0.11944791,86719.0,86711.0,0.00013056]
[1745198268927,0.4162,86718.0,86711.0,0.00013056]
[1745198269135,0.36463734,86712.0,86711.0,0.00013056]
[1745198269339,0.13398876,86712.0,86711.0,0.00013056]
[1745198272142,0.55018876,86712.0,86711.0,0.00013056]
[1745198272356,0.24522135,86700.0,86699.0,0.0004224]
[1745198272560,0.24522135,86700.0,86699.0,0.00055836]
[1745198272561,0.13398876,86700.0,86699.0,0.00055836]
[1745198273375,0.55018876,86700.0,86699.0,0.00055836]
[1745198273754,0.59938876,86700.0,86699.0,0.00055836]
[1745198274175,0.01454085,86695.0,86674.0,0.11228]
[1745198274391,0.13398876,86685.0,86660.0,0.11232]
[1745198274541,0.13398876,86685.0,86661.0,0.34]
[1745198275552,0.11944791,86685.0,86661.0,0.34]
[1745198276132,0.13398876,86685.0,86661.0,0.34]
[1745198276333,0.13398876,86685.0,86659.0,0.02671737]
[1745198276535,0.13398876,86685.0,86661.0,0.11232]
[1745198276763,0.13398876,86685.0,86664.0,0.0004224]
[1745198277726,0.11944791,86685.0,86664.0,0.0004224]
[1745198279868,0.0576,86712.0,86684.0,0.36764105]
[1745198280068,0.11944791,86706.0,86684.0,0.36764105]
[1745198280271,0.11944791,86706.0,86684.0,0.3414223]
[1745198280717,0.11944791,86706.0,86685.0,0.0023068]
[1745198280929,0.00013549,86709.0,86690.0,0.3146251]
[1745198281131,0.00013549,86709.0,86691.0,0.11944791]
[1745198281554,0.00013549,86709.0,86700.0,0.0471]
[1745198281758,0.00013549,86709.0,86701.0,0.12175414]
[1745198281960,0.01062452,86712.0,86702.0,0.016]
[1745198282153,0.01062452,86712.0,86703.0,0.12175392]
[1745198282354,0.01062452,86712.0,86703.0,0.11944791]
[1745198282559,0.01062452,86712.0,86704.0,0.34]
[1745198282712,0.01062452,86712.0,86706.0,0.34]
[1745198282935,0.01062452,86712.0,86706.0,0.45944791]
[1745198283138,0.01062452,86712.0,86707.0,0.00230602]
[1745198283543,0.01062452,86712.0,86702.0,0.016]
[1745198284067,0.01062452,86712.0,86703.0,0.00230631]
[1745198284270,0.09224826,86730.0,86704.0,0.11944791]
[1745198285122,0.11944791,86729.0,86702.0,0.016]
[1745198285495,0.11944791,86729.0,86700.0,1.03466]
[1745198285496,0.09224826,86721.0,86700.0,0.98756]
[1745198285704,0.11944791,86720.0,86701.0,0.1122]
[1745198286947,0.53564791,86720.0,86702.0,0.34]
[1745198287543,0.4162,86720.0,86703.0,0.00230649]
[1745198287971,0.4162,86720.0,86702.0,0.34]
[1745198288157,0.11944791,86719.0,86702.0,0.34]
[1745198288299,0.11944791,86719.0,86704.0,0.34]
[1745198289126,0.11944791,86719.0,86706.0,0.34]
[1745198289781,0.11944791,86719.0,86705.0,0.1122]
[1745198289782,0.01454085,86718.0,86705.0,0.1122]
[1745198289984,0.11944791,86717.0,86705.0,0.1122]
[1745198291092,0.12791011,86717.0,86705.0,0.1122]
[1745198291316,0.01454085,86706.0,86700.0,0.00013549]
[1745198291431,0.01454085,86701.0,86700.0,0.00013549]
[1745198291634,0.13398876,86701.0,86700.0,0.00013549]
[1745198291839,0.11944791,86701.0,86700.0,0.00013549]
[1745198292044,0.12044791,86701.0,86700.0,0.00013549]
[1745198293210,0.143621,86701.0,86700.0,0.00013549]
[1745198293454,0.559821,86701.0,86700.0,0.00013549]
[1745198295625,0.559821,86701.0,86684.0,0.37377029]
[1745198295626,0.01454085,86700.0,86684.0,0.001]
[1745198295823,0.13398876,86685.0,86684.0,0.001]
[1745198295956,0.53564791,86685.0,86684.0,0.001]
[1745198298937,0.4162,86685.0,86684.0,0.001]
[1745198301010,0.4162,86685.0,86684.0,0.1132]
[1745198301334,0.4162,86700.0,86684.0,0.1132]
[1745198301590,0.11944791,86699.0,86684.0,0.1132]
[1745198303624,0.01454085,86696.0,86684.0,0.1132]
[1745198303835,0.01454085,86691.0,86684.0,0.1132]
[1745198304034,0.11944791,86686.0,86684.0,0.1132]
[1745198304229,0.01454085,86685.0,86684.0,0.1132]
[1745198304434,0.13398876,86685.0,86684.0,0.1132]
[1745198305194,0.18168876,86685.0,86684.0,0.001]
[1745198305351,0.22758876,86685.0,86684.0,0.001]
[1745198307240,0.64378876,86685.0,86684.0,0.001]
[1745198307647,0.24526925,86682.0,86681.0,0.003]
[1745198307884,0.36471716,86682.0,86681.0,0.003]
[1745198308452,0.13398876,86682.0,86681.0,0.003]
[1745198310487,0.01454085,86681.0,86658.0,0.3388447]
[1745198310710,0.53564791,86680.0,86672.0,0.00013579]
[1745198312646,0.53564791,86680.0,86673.0,0.11224]
[1745198313471,0.4162,86680.0,86673.0,0.11224]
[1745198315056,0.0459,86694.0,86673.0,0.11224]
[1745198315305,0.11944791,86693.0,86673.0,0.11224]
[1745198317918,0.4162,86692.0,86673.0,0.11224]
[1745198318122,0.01454085,86690.0,86673.0,0.11224]
[1745198318391,0.53564791,86689.0,86673.0,0.11224]
[1745198322867,0.4162,86709.0,86674.0,0.16018728]
[1745198323039,0.11944791,86708.0,86674.0,0.15788]
[1745198323265,0.21169617,86708.0,86674.0,0.15788]
[1745198323430,0.4162,86707.0,86674.0,0.15788]
[1745198323636,0.11944791,86706.0,86674.0,0.15788]
[1745198324695,0.1278824,86706.0,86674.0,0.15788]
[1745198326513,0.1278824,86706.0,86675.0,0.34]
[1745198327276,0.1278824,86706.0,86681.0,0.34]
[1745198327277,0.11944791,86706.0,86681.0,0.34]
[1745198328232,0.11944791,86706.0,86682.0,0.00230672]
[1745198328637,0.11944791,86706.0,86683.0,0.03009999]
[1745198328846,0.11944791,86706.0,86682.0,0.03009999]
[1745198329055,0.11944791,86706.0,86681.0,0.34]
[1745198329232,0.11944791,86706.0,86682.0,0.03009974]
[1745198329438,0.11944791,86706.0,86681.0,0.34]
[1745198329638,0.4162,86717.0,86683.0,0.34]
[1745198329854,0.11944791,86714.0,86684.0,0.00230662]
[1745198330059,0.11944791,86714.0,86690.0,0.21031658]
[1745198330298,0.11944791,86714.0,86691.0,0.00230648]
[1745198331133,0.09224826,86730.0,86701.0,0.0456]
[1745198331274,0.09224826,86730.0,86702.0,0.11204]
[1745198331476,0.11944791,86714.0,86702.0,0.11204]
[1745198331711,0.11944791,86714.0,86703.0,0.11204]
[1745198332262,0.1195838,86714.0,86703.0,0.11204]
[1745198332467,0.1195838,86714.0,86703.0,0.14546263]
[1745198332913,0.1195838,86714.0,86704.0,0.00230662]
[1745198333122,0.00013589,86714.0,86705.0,0.11204]
[1745198333303,0.11944791,86713.0,86705.0,0.11204]
[1745198334368,0.11944791,86713.0,86706.0,0.34]
[1745198337425,0.11944791,86713.0,86703.0,1.53332263]
[1745198337635,0.11944791,86713.0,86704.0,0.11204]
[1745198337995,0.11944791,86713.0,86705.0,0.11204]
[1745198340786,0.10489369,86713.0,86705.0,0.11204]
[1745198342128,0.00013589,86714.0,86706.0,0.34]
[1745198342338,0.00013589,86714.0,86707.0,0.00230644]
[1745198342671,0.00013589,86714.0,86709.0,0.34]
[1745198342854,0.00013589,86714.0,86710.0,0.00230606]
[1745198343399,0.00013589,86714.0,86712.0,0.34]
[1745198343613,0.004,86739.0,86714.0,0.34]
[1745198344162,0.004,86739.0,86714.0,0.45944791]
[1745198344407,0.004,86739.0,86715.0,0.0191]
[1745198344603,0.004,86739.0,86726.0,0.21031658]
[1745198344779,0.004,86739.0,86727.0,0.11944791]
[1745198348380,0.004,86739.0,86728.0,0.34]
[1745198349617,0.004,86739.0,86727.0,0.11944791]
[1745198351580,0.004,86739.0,86728.0,0.00230541]
[1745198351783,0.004,86739.0,86729.0,0.11944791]
[1745198351981,0.004,86739.0,86730.0,0.00230529]
[1745198352198,0.004,86739.0,86731.0,0.11944791]
[1745198352430,0.004,86739.0,86732.0,0.00230529]
[1745198352623,0.00096886,86739.0,86735.0,0.01454085]
[1745198352824,0.00096886,86739.0,86737.0,0.01454085]
[1745198353059,0.00096886,86739.0,86738.0,0.11944791]
[1745198353192,0.00096886,86739.0,86736.0,0.33225751]
[1745198353593,0.00096886,86739.0,86737.0,0.11184]
[1745198353797,0.09224826,86738.0,86736.0,0.11184]
[1745198353998,0.0489,86737.0,86736.0,0.11184]
[1745198354233,0.58454791,86737.0,86736.0,0.11184]
[1745198354439,0.01454085,86736.0,86713.0,0.11184]
[1745198354753,0.04887117,86716.0,86713.0,0.11184]
[1745198355994,0.11944791,86715.0,86713.0,0.11184]
[1745198356435,0.11944791,86715.0,86691.0,0.98708]
[1745198356578,0.11944791,86715.0,86713.0,0.11184]
[1745198356782,0.11944791,86715.0,86714.0,0.34]
[1745198360791,0.04887117,86716.0,86714.0,0.34]
[1745198360996,0.4162,86725.0,86715.0,0.00230621]
[1745198361205,0.00196886,86739.0,86715.0,0.43710173]
[1745198361411,0.00196886,86739.0,86729.0,0.31534761]
[1745198361600,0.11944791,86738.0,86720.0,0.31534761]
[1745198362021,0.00196886,86739.0,86721.0,0.11184]
[1745198362228,0.11944791,86738.0,86722.0,0.34]
[1745198362428,0.09224826,86729.0,86724.0,0.34]
[1745198362638,0.0936,86727.0,86719.0,0.11184]
[1745198362839,0.11944791,86726.0,86719.0,0.11184]
[1745198363248,0.11944791,86726.0,86690.0,0.31534761]
[1745198363465,0.11944791,86726.0,86714.0,0.11184]
[1745198364006,0.4162,86725.0,86714.0,0.11184]
[1745198364201,0.11944791,86724.0,86714.0,0.11184]
[1745198364405,0.11944791,86724.0,86712.0,0.11184]
[1745198366714,0.4162,86723.0,86712.0,0.11184]
[1745198367084,0.11944791,86722.0,86712.0,0.11184]
[1745198371835,0.11944791,86722.0,86703.0,1.52828621]
[1745198372044,0.0465,86720.0,86709.0,0.11188]
[1745198372239,0.09224826,86711.0,86703.0,1.52859438]
[1745198372439,0.0465,86709.0,86703.0,1.50003589]
[1745198372644,0.11944791,86708.0,86703.0,1.50003589]
[1745198373216,0.12798688,86708.0,86703.0,1.50003589]
[1745198374499,0.11944791,86708.0,86704.0,0.34]
[1745198374852,0.0934,86717.0,86704.0,0.34]
[1745198374853,0.00849533,86716.0,86704.0,0.34]
[1745198375078,0.4162,86721.0,86705.0,0.00230654]
[1745198375278,0.11944791,86720.0,86707.0,0.34]
[1745198375451,0.001,86722.0,86708.0,0.00230634]
[1745198375661,0.11944791,86721.0,86708.0,0.00230634]
[1745198376283,0.11944791,86721.0,86707.0,0.34]
[1745198376486,0.001,86722.0,86704.0,0.34]
[1745198376683,0.001,86722.0,86706.0,0.34]
[1745198376863,0.001,86722.0,86707.0,0.00230613]
[1745198377103,0.001,86722.0,86706.0,0.34]
[1745198377873,0.11944791,86721.0,86706.0,0.34]
[1745198378239,0.11944791,86721.0,86707.0,0.11172]
[1745198381322,0.001,86722.0,86710.0,0.21017648]
[1745198381526,0.001,86722.0,86711.0,0.00230608]
[1745198381702,0.001,86722.0,86710.0,0.21017648]
[1745198381903,0.001,86722.0,86707.0,0.11172]
[1745198382055,0.001,86722.0,86711.0,0.00230608]
[1745198382860,0.001,86722.0,86707.0,0.11172]
[1745198383435,0.001,86722.0,86710.0,0.21017648]
[1745198384252,0.11944791,86721.0,86707.0,0.11172]
[1745198384617,0.18614826,86720.0,86708.0,0.11172]
[1745198384828,0.11944791,86719.0,86708.0,0.11172]
[1745198385028,0.0463,86720.0,86709.0,0.11172]
[1745198385395,0.00013589,86719.0,86709.0,0.32189648]
[1745198386449,0.00013589,86719.0,86709.0,0.11172]
[1745198386657,0.00013589,86719.0,86710.0,0.11172]
[1745198386861,0.11944791,86718.0,86711.0,0.11172]
[1745198387057,0.11944791,86718.0,86712.0,0.11172]
[1745198387213,0.11944791,86718.0,86713.0,0.11172]
[1745198387817,0.11944791,86718.0,86714.0,0.11172]
[1745198388338,0.11944791,86718.0,86715.0,0.34]
[1745198389472,0.00013589,86719.0,86715.0,0.34]
[1745198389673,0.00013589,86719.0,86716.0,0.00230614]
[1745198390251,0.00013589,86719.0,86718.0,0.34]
[1745198394517,0.00013589,86719.0,86717.0,0.11172]
[1745198396011,0.00013589,86719.0,86718.0,0.34]
[1745198396214,0.1195838,86719.0,86718.0,0.34]
[1745198400355,0.00013589,86719.0,86718.0,0.34]
[1745198405317,0.00013589,86719.0,86718.0,0.341]
[1745198407007,0.00013589,86719.0,86718.0,0.53566299]
[1745198407231,0.001,86722.0,86718.0,0.53566299]
[1745198407443,0.001,86722.0,86720.0,0.34]
[1745198407615,0.0008442,86747.0,86722.0,0.34]
[1745198407832,0.00098004,86747.0,86724.0,0.34]
[1745198408099,0.00098004,86747.0,86726.0,0.34]
[1745198408320,0.00098004,86747.0,86728.0,0.34]
[1745198408517,0.00098004,86747.0,86730.0,0.34]
[1745198408740,0.00098004,86747.0,86730.0,0.45944791]
[1745198409378,0.00098004,86747.0,86730.0,0.34]
[1745198409605,0.00098004,86747.0,86720.0,0.34]
[1745198409806,0.00098004,86747.0,86732.0,0.34]
[1745198410558,0.00098004,86747.0,86733.0,0.00230555]
[1745198413239,0.00098004,86747.0,86732.0,0.34]
[1745198414323,0.00098004,86747.0,86733.0,0.12175325]
[1745198414993,0.00098004,86747.0,86733.0,1.50220534]
[1745198415218,0.00098004,86747.0,86733.0,1.4999]
[1745198416531,0.00098004,86747.0,86734.0,0.00230551]
[1745198420261,0.00098004,86747.0,86734.0,0.34]
[1745198422476,0.00098004,86747.0,86735.0,0.00230551]
[1745198425536,0.00098004,86747.0,86733.0,1.4999]
[1745198425537,0.21774791,86746.0,86733.0,1.4999]
[1745198425681,0.21024549,86743.0,86733.0,1.4999]
[1745198425895,0.17055526,86746.0,86733.0,1.4999]
[1745198425896,0.12175526,86742.0,86733.0,1.4999]
[1745198426095,0.11944791,86742.0,86733.0,1.4999]
[1745198426424,0.0495,86744.0,86733.0,1.4999]
[1745198426603,0.12175526,86743.0,86733.0,1.4999]
[1745198426998,0.11944791,86743.0,86733.0,1.4999]
[1745198428424,0.12175526,86743.0,86734.0,0.34]
[1745198428620,0.11944791,86743.0,86734.0,0.34]
[1745198431121,0.0495,86744.0,86734.0,0.34]
[1745198431293,0.0495,86744.0,86735.0,0.00230557]
[1745198431622,0.0495,86744.0,86735.0,0.01202195]
[1745198432039,0.0495,86744.0,86735.0,0.00971638]
[1745198433533,0.0495,86744.0,86736.0,0.11152]
[1745198433776,0.0495,86744.0,86736.0,0.12113109]
[1745198434793,0.0495,86744.0,86737.0,0.00230557]
[1745198435213,0.0495,86744.0,86738.0,0.00961109]
[1745198435632,0.0495,86744.0,86738.0,0.01191662]
[1745198437674,0.0495,86744.0,86738.0,0.00961109]
[1745198437881,0.00098004,86747.0,86738.0,0.00961109]
[1745198438174,0.00098004,86747.0,86739.0,0.00961993]
[1745198438315,0.00098004,86747.0,86736.0,0.11152]
[1745198438522,0.00098004,86747.0,86737.0,0.00961993]
[1745198443016,0.00098004,86747.0,86738.0,0.00230555]
[1745198443194,0.00098004,86747.0,86738.0,0.01192254]
[1745198446707,0.00098004,86747.0,86738.0,0.00961699]
[1745198449979,0.00098004,86747.0,86737.0,0.19256005]
[1745198450146,0.00098004,86747.0,86739.0,0.00795517]
[1745198450321,0.00098004,86747.0,86737.0,0.19256005]
[1745198450527,0.00098004,86747.0,86738.0,0.00795592]
[1745198452205,0.00098004,86747.0,86738.0,0.01026147]
[1745198453515,0.00098004,86747.0,86738.0,0.00795592]
[1745198454554,0.00098004,86747.0,86738.0,0.01026147]
[1745198457881,0.00098004,86747.0,86738.0,0.00795592]
[1745198460726,0.0452,86743.0,86738.0,0.00795592]
[1745198460926,0.01454085,86738.0,86723.0,0.11132]
[1745198461129,0.21024549,86733.0,86718.0,0.34]
[1745198461282,0.16985526,86732.0,86724.0,0.00539572]
[1745198461493,0.16985526,86732.0,86718.0,0.11132]
[1745198461700,0.16985526,86732.0,86725.0,0.00537802]
[1745198461993,0.16985526,86732.0,86718.0,0.11132]
[1745198462199,0.16985526,86732.0,86726.0,0.00537802]
[1745198462420,0.00230735,86731.0,86726.0,0.00537802]
[1745198462620,0.11944791,86730.0,86718.0,0.11132]
[1745198462742,0.00230735,86729.0,86727.0,0.00537508]
[1745198462942,0.12175526,86729.0,86719.0,0.11136]
[1745198463188,0.12175526,86729.0,86720.0,0.11593352]
[1745198463339,0.11944791,86728.0,86721.0,0.11136]
[1745198463544,0.0481,86726.0,86722.0,0.00457057]
[1745198463754,0.00230735,86727.0,86715.0,0.11136]
[1745198463755,0.0481,86724.0,86715.0,0.11136]
[1745198463994,0.0466,86722.0,86716.0,0.00461099]
[1745198464149,0.0466,86720.0,86711.0,0.11136]
[1745198464357,0.21024549,86726.0,86694.0,0.14117795]
[1745198464358,0.0469,86718.0,86694.0,0.14117795]
[1745198464570,0.0466,86716.0,86695.0,0.11603866]
[1745198464783,0.11944791,86715.0,86696.0,0.00230673]
[1745198464973,0.11944791,86715.0,86696.0,0.34694095]
[1745198465176,0.11944791,86715.0,86697.0,0.00230658]
[1745198465560,0.11944791,86715.0,86697.0,0.00712262]
[1745198466412,0.11944791,86715.0,86697.0,0.00481604]
[1745198466413,0.00230735,86714.0,86697.0,0.00481604]
[1745198466604,0.11944791,86713.0,86697.0,0.00481604]
[1745198466808,0.00230735,86712.0,86697.0,0.00481604]
[1745198466946,0.11944791,86711.0,86697.0,0.00481604]
[1745198467150,0.00230735,86710.0,86697.0,0.00481604]
[1745198467355,0.11944791,86709.0,86697.0,0.00481604]
[1745198467653,0.00230735,86708.0,86697.0,0.00481604]
[1745198467874,0.11944791,86707.0,86697.0,0.00481604]
[1745198468087,0.00230735,86706.0,86697.0,0.00481604]
[1745198468280,0.11944791,86705.0,86697.0,0.00481604]
[1745198468475,0.00230735,86704.0,86697.0,0.00481604]
[1745198468679,0.16604791,86703.0,86697.0,0.00481604]
[1745198469005,0.00230735,86702.0,86697.0,0.00481604]
[1745198469175,0.11944791,86701.0,86697.0,0.00481604]
[1745198469396,0.04920735,86700.0,86697.0,0.00481604]
[1745198469616,0.11944791,86699.0,86697.0,0.00481604]
[1745198469821,0.00230735,86698.0,86697.0,0.00481604]
[1745198470000,0.12175526,86698.0,86697.0,0.00481604]
[1745198473386,0.18289611,86698.0,86697.0,0.00481604]
[1745198473606,0.10804085,86695.0,86694.0,0.11635234]
[1745198473743,0.01454085,86692.0,86681.0,0.004]
[1745198473958,0.42773442,86697.0,86681.0,0.004]
[1745198473959,0.05,86712.0,86697.0,0.83936304]
[1745198474165,0.11944791,86698.0,86697.0,0.83936304]
[1745198476063,0.13398876,86698.0,86697.0,0.83936304]
[1745198476956,0.22748876,86698.0,86697.0,0.83936304]
[1745198477396,0.64368876,86698.0,86697.0,0.83936304]
[1745198478549,0.64368876,86698.0,86697.0,0.74576304]
[1745198481148,0.62914791,86698.0,86697.0,0.74576304]
[1745198481357,0.58254791,86698.0,86697.0,0.74576304]
[1745198481733,0.59708876,86698.0,86697.0,0.74576304]
[1745198482172,0.53564791,86698.0,86697.0,0.74576304]
[1745198487197,0.53564791,86698.0,86697.0,0.74152595]
[1745198489584,0.55018876,86698.0,86697.0,0.74152595]
[1745198489792,0.59778876,86698.0,86697.0,0.74152595]
[1745198490155,0.82847458,86698.0,86697.0,0.74152595]
[1745198490555,0.82947458,86698.0,86697.0,0.74152595]
[1745198490750,0.59878876,86698.0,86697.0,0.74152595]
[1745198491893,0.55118876,86698.0,86697.0,0.74152595]
[1745198492099,0.53664791,86698.0,86697.0,0.74152595]
[1745198497212,0.55118876,86698.0,86697.0,0.74152595]
[1745198497658,0.57257722,86698.0,86697.0,0.74152595]
[1745198501752,0.55118876,86698.0,86697.0,0.74152595]
[1745198502857,0.5727194,86698.0,86697.0,0.74152595]
[1745198503080,0.2048194,86698.0,86697.0,0.32532595]
[1745198503301,0.2509194,86698.0,86697.0,0.32532595]
[1745198504001,0.48160522,86698.0,86697.0,0.32532595]
[1745198504898,0.2509194,86698.0,86697.0,0.32532595]
[1745198505370,0.48160522,86698.0,86697.0,0.32532595]
[1745198505575,0.48260522,86698.0,86697.0,0.32532595]
[1745198508323,0.48260522,86698.0,86697.0,0.26535257]
[1745198508553,0.01454085,86685.0,86681.0,0.004]
[1745198508696,0.13398876,86684.0,86681.0,0.004]
[1745198512783,0.55018876,86684.0,86681.0,0.004]
[1745198518539,0.55018876,86684.0,86683.0,0.0003492]
[1745198520690,0.53564791,86684.0,86683.0,0.0013492]
[1745198521081,0.53564791,86684.0,86683.0,0.0922492]
[1745198521688,0.11944791,86684.0,86683.0,0.0922492]
[1745198522452,0.17701225,86692.0,86684.0,0.0456]
[1745198522737,0.11944791,86691.0,86684.0,0.0456]
[1745198523280,0.11944791,86691.0,86684.0,0.40824781]
[1745198524492,0.11944791,86691.0,86685.0,0.0478]
[1745198525115,0.17701225,86692.0,86685.0,0.0478]
[1745198525334,0.29646016,86692.0,86685.0,0.0478]
[1745198525740,0.17701225,86692.0,86685.0,0.05010706]
[1745198525953,0.17701225,86692.0,86685.0,0.0478]
[1745198527274,0.29646016,86692.0,86685.0,0.0478]
[1745198527483,0.11944791,86691.0,86685.0,0.0478]
[1745198534376,0.17701225,86692.0,86685.0,0.0478]
[1745198535617,0.11944791,86691.0,86685.0,0.0478]
[1745198536049,0.11944791,86691.0,86685.0,0.15872]
[1745198536439,0.11934791,86691.0,86685.0,0.15872]
[1745198538268,0.11934791,86691.0,86640.0,0.05]
[1745198538269,0.051,86683.0,86682.0,0.11092]
[1745198538467,0.001,86678.0,86672.0,0.00013579]
[1745198538676,0.001,86678.0,86673.0,0.11092]
[1745198539053,0.001,86673.0,86672.0,0.00013579]
[1745198539260,0.17044791,86673.0,86672.0,0.11105579]
[1745198545996,0.05,86673.0,86672.0,0.11105579]
[1745198546207,0.001,86682.0,86672.0,0.11105579]